Cogmind - Beta 13 @@@ ROGUE MODE // 2024.04.13 @ 22:42:48 Player: Mister Redpill Result: Destroyed by P-60 Hacker with Shock Rifle Performance ------------- Evolutions (3) 1500 Regions Visited (4) 800 Robots Destroyed (49) 245 Value Destroyed (1129) 1129 Prototype IDs (0) 0 Alien Tech Used (0) 0 Bonus (151) 151 TOTAL SCORE: 3825 Bonus ------- High Alert Combat Kills 151 Cogmind --------- Core Integrity 0/700 Matter 235/300 Energy 191/275 System Corruption 3% Temperature Cool (0) Movement Treading (160) Location -7/Factory Parts ------- > --- POWER (2) -------- Deuterium Engine > --- PROPULSION (3) --- Medium Treads > --- UTILITY (3) ------ Improved Signal Interpreter > --- WEAPON (5) ------- Great Maul > --- INVENTORY (5) ---- Carbon-fiber Leg Great Maul Great Maul Great Maul Peak State ------------ > --- POWER ------------ Nuclear Core Nuclear Core > --- PROPULSION ------- Airjet Airjet Airjet > --- UTILITY ---------- Medium Matter Pod Advanced Weight Redist. System Improved Signal Interpreter > --- WEAPON ----------- Shock Rifle Assault Rifle Minigun Gauss Rifle Assault Cannon > --- INVENTORY -------- Improved Cooling System Particle Charger Rocket Launcher [Rating: 36] Favorites ----------- Power Nuclear Core Engine Light Ion Engine Power Core Nuclear Core Propulsion Airjet Treads Medium Treads Wheel Wheel Hover Unit Airjet Utility Improved Signal Interpreter Device Sensor Array Storage Medium Matter Pod Processor Improved Signal Interpreter Protection Medium Armor Plating Weapon Assault Rifle Energy Gun EM Pulse Gun Ballistic Gun Assault Rifle Ballistic Cannon Assault Cannon Launcher Rocket Launcher Impact Weapon Great Maul Build | -11 -10 -9 -8 -7 ------- Run | Yrd Mat Mat Mat Fac Slots Evolved 6 | . . 2 2 2 Power 1 | . . . . 1 Propulsion 1 | . . 1 . . Utility 1 | . . 1 . . Weapon 3 | . . . 2 1 Parts Attached 44 | 5 11 11 5 12 Power 5 | 1 . 2 . 2 Engine 3 | 1 . 1 . 1 Core 2 | . . 1 . 1 Reactor . | . . . . . Propulsion 11 | 2 2 5 1 1 Treads 1 | . . . . 1 Leg . | . . . . . Wheel 2 | 2 . . . . Hover 8 | . 2 5 1 . Flight . | . . . . . Utility 8 | . 3 2 . 3 Device 4 | . 1 . . 3 Storage 1 | . 1 . . . Processor 1 | . . 1 . . Hackware . | . . . . . Protection 2 | . 1 1 . . Artifact . | . . . . . Weapon 20 | 2 6 2 4 6 Energy Gun 7 | 2 2 1 1 1 Energy Cannon . | . . . . . Ballistic Gun 3 | . . 1 2 . Ballistic Cannon 1 | . . . . 1 Launcher 6 | . 4 . 1 1 Special Weapon . | . . . . . Impact Weapon 3 | . . . . 3 Slashing Weapon . | . . . . . Piercing Weapon . | . . . . . Special Melee Weapon . | . . . . . Unidentified Prototypes . | . . . . . Parts Lost 21 | . . 3 3 15 Power 3 | . . 1 . 2 Propulsion 5 | . . 1 1 3 Utility 4 | . . . 1 3 Weapon 9 | . . 1 1 7 Highest Loss Streak 8 | . . 3 3 8 To Critical Strikes . | . . . . . Average Slot Usage (%) 68 | . 85 95 89 37 Engine 3 | . 14 3 . . Core 3 | . . 5 9 2 Treads 1 | . . . . 4 Hover 17 | . 25 30 24 3 Device 6 | . 11 11 3 3 Storage 5 | . 4 11 9 1 Processor 5 | . . 4 9 7 Protection 1 | . . 6 . . Energy Gun 6 | . 11 7 10 2 Ballistic Gun 7 | . . 9 20 5 Launcher 4 | . 15 4 2 . Impact Weapon 1 | . . . . 4 Naked Turns . | . . . . . Heaviest Build 33 | 7 14 21 21 33 Greatest Support 33 | 20 20 24 24 33 Greatest Overweight (x) 3 | . . 1 1 3 Average Overweight (x) . | . . . . . Largest Inventory Capacity 5 | 5 5 5 5 5 Average Capacity 5 | 5 5 5 5 5 Most Carried 5 | 3 5 5 5 5 Average Carried 3 | . 4 3 4 3 Final Capacity 5 | 5 5 5 5 5 Final Carried 5 | . 5 5 4 4 Class Distribution -------------------- 74% | Mutant 10% | Gunner 8% | Bomber 7% | Skirmisher Dominant Class ---------------- Mutant | -10/Materials Mutant | -9/Materials Bomber | -8/Materials Mutant | -7/Factory Resources | -11 -10 -9 -8 -7 ----------- Run | Yrd Mat Mat Mat Fac Matter Collected 1206 | 73 383 152 434 164 Remotely . | . . . . . Salvage Created 1236 | 43 179 181 578 255 Parts 83 | 5 19 23 27 9 Haulers Intercepted 1 | . 1 . . . Recyclers Shooed . | . . . . . Parts Field Recycled . | . . . . . Retrieved Matter . | . . . . . Parts Self-Destructed . | . . . . . Prevented . | . . . . . Kills | -11 -10 -9 -8 -7 ------- Run | Yrd Mat Mat Mat Fac Combat Hostiles Destroyed 37 | 1 3 14 13 6 Guns 22 | 1 3 5 10 3 Cannons 1 | . . . . 1 AOE 13 | . . 9 3 1 Classes Destroyed 10 | 1 5 2 1 1 Worker 3 | . 2 1 . . Builder 2 | . 1 1 . . Hauler 1 | . 1 . . . Recycler 1 | . . . . 1 Operator 1 | . . 1 . . Watcher 4 | . 2 1 1 . Swarmer 22 | . 3 11 4 4 Grunt 11 | 1 . 2 7 1 Sentry 2 | . . 1 1 . Hunter 2 | . . . 1 1 Best Kill Streak 11 | 1 7 11 5 4 Combat Bots Only 10 | 1 3 10 5 4 Max Kills in Single Turn 4 | 1 1 4 3 1 Gunslinging 1 | . . . 1 . Exploded 3 | . . 3 3 1 Melee . | . . . . . Uniques/NPCs Destroyed . | . . . . . Combat | -11 -10 -9 -8 -7 -------- Run | Yrd Mat Mat Mat Fac Hostile Shots Fired 269 | 4 10 53 39 163 Missed 88 | 1 4 18 16 49 Damage Taken 2699 | 32 48 436 343 1840 Core 862 | . . 49 107 706 Absorbed by Shields . | . . . . . Core Remaining (%) 91 | 100 100 87 80 . Volleys Fired 94 | 3 24 22 27 18 Largest 5 | 2 2 2 4 5 Hottest 167 | 90 90 66 135 167 Shots Fired 228 | 6 35 40 92 55 Gun 199 | 6 31 27 92 43 Cannon 11 | . . . . 11 Launcher 18 | . 4 13 . 1 Special . | . . . . . Kinetic 120 | . . 16 61 43 Thermal 28 | 3 22 . . 3 Explosive 18 | . 4 13 . 1 Electromagnetic 62 | 3 9 11 31 8 Robot Hit Streak 13 | 5 3 7 13 5 Robot Miss Streak 8 | 1 5 2 3 8 Penetration Max 1 | . . . . 1 Secondary Targets 4 | . 1 1 2 . Max Gunslinging Chain 1 | . 1 1 1 . Shots Hit Robots 122 | 5 16 22 50 29 Core Hits 72 | 2 11 26 21 12 Critical Kills 1 | . . . 1 . Critical Parts Destroyed 1 | . . . . 1 Critical Strikes 3 | . 1 . 1 1 Burn 1 | . 1 . . . Destroy 1 | . . . 1 . Smash 1 | . . . . 1 Melee Attacks 5 | . . . . 5 Impact 5 | . . . . 5 Slashing . | . . . . . Piercing . | . . . . . Sneak Attacks 1 | . . . . 1 Combat Hostiles . | . . . . . Follow-up Attacks . | . . . . . Damage Inflicted 3289 | 68 231 1081 1053 856 Guns 1783 | 68 203 192 837 483 Cannons 120 | . . . . 120 Explosions 1215 | . 28 889 216 82 Melee 171 | . . . . 171 Ramming . | . . . . . Kinetic 1179 | . . 161 524 494 Thermal 417 | 25 138 . 216 38 Explosive 999 | . 28 889 . 82 Electromagnetic 523 | 43 65 31 313 71 Impact 171 | . . . . 171 Slashing . | . . . . . Piercing . | . . . . . Highest Corruption 2 | . . . . 2 Average Corruption 1 | . . . . 1 Corruption Purged . | . . . . . Corruption Blocked . | . . . . . Effects 2 | . . . . 2 Matter Fused 1 | . . . . 1 Data Loss (minor) 1 | . . . . 1 Overload Shots . | . . . . . Overflow Damage 112 | . . 3 34 75 Projectiles 4 | . . . . 4 Explosions 37 | . . 3 34 . Melee 71 | . . . . 71 Knockbacks 4 | . . . . 4 Impact 2 | . . . . 2 Kinetic 2 | . . . . 2 Secondary . | . . . . . Self-Inflicted Damage 98 | . . 47 51 . Shots 2 | . . 1 1 . Rammed . | . . . . . Targets Rammed . | . . . . . Kicked . | . . . . . Crushed . | . . . . . Highest Temperature 407 | 108 132 103 354 407 Average Temperature 98 | 56 46 30 122 189 Received Heat Transfer 582 | 18 . 96 99 369 Effects 5 | . . . 1 4 Shutdowns 3 | . . . 1 2 Matter Decay 2 | . . . . 2 Siege Activations . | . . . . . Robots Corrupted . | . . . . . Combat Hostiles . | . . . . . Parts Fried 4 | . . . 1 3 Impact Corruptions 3 | . . . . 3 Robots Melted . | . . . . . Combat Hostiles . | . . . . . Parts Melted . | . . . . . Heat Transferred 829 | 74 481 . 200 74 Parts Sabotaged . | . . . . . Parts Stolen . | . . . . . Parts Stripped . | . . . . . Power Chain Reactions 2 | . . . 2 . Alert | -11 -10 -9 -8 -7 ------- Run | Yrd Mat Mat Mat Fac Peak Influence 628 | 20 195 539 628 549 Initial 285 | . 13 81 227 285 Average 356 | 3 118 431 415 428 Maximum Alert Level 2 | . . 2 2 2 Low Security (%) 23 | 100 100 8 . . Level 1 28 | . . 7 40 51 Level 2 47 | . . 84 59 48 Level 3 . | . . . . . Level 4 . | . . . . . Level 5 . | . . . . . High Security . | . . . . . Max Security . | . . . . . Squads Dispatched 6 | . . . 2 4 Investigation 1 | . . . 1 . Extermination 2 | . . . . 2 Reinforcement 3 | . . . 1 2 Assault . | . . . . . Garrison . | . . . . . Intercept . | . . . . . Searches Triggered . | . . . . . Construction Impeded . | . . . . . Haulers Reinforced . | . . . . . Active Scanning Responses . | . . . . . Cargo Convoy Interrupts . | . . . . . Stealth | -11 -10 -9 -8 -7 --------- Run | Yrd Mat Mat Mat Fac Distress Signals 1 | . 1 . . . Communications Jammed . | . . . . . Distress Signals . | . . . . . Times Spotted 74 | 1 11 18 15 29 Peak Tracking Total 10 | 1 3 7 8 10 Tactical Retreats 9 | . . . 1 8 Traps | -11 -10 -9 -8 -7 ------- Run | Yrd Mat Mat Mat Fac Traps Triggered 1 | . . . 1 . Indirectly . | . . . . . Trap Hack Attempts . | . . . . . Triggered . | . . . . . Disarmed . | . . . . . Reprogrammed . | . . . . . Reused . | . . . . . Traps Extracted . | . . . . . Installed . | . . . . . Triggered . | . . . . . Machines | -11 -10 -9 -8 -7 ---------- Run | Yrd Mat Mat Mat Fac Machines Disabled 4 | . 3 1 . . Max in Single Turn 2 | . 2 1 . . Machines Repaired . | . . . . . Machines Dismantled . | . . . . . Machines Sabotaged . | . . . . . Overloaded Fab Kills . | . . . . . Hacking | -11 -10 -9 -8 -7 --------- Run | Yrd Mat Mat Mat Fac Machines Accessed 1 | . . 1 . . Terminals . | . . . . . Fabricators . | . . . . . Repair Stations . | . . . . . Recycling Units . | . . . . . Scanalyzers 1 | . . 1 . . Garrison Access . | . . . . . Total Hacks 3 | . . 3 . . Successful 3 | . . 3 . . Failed . | . . . . . Catastrophic . | . . . . . Database Lockouts . | . . . . . Manual . | . . . . . Terminals . | . . . . . Fabricators . | . . . . . Repair Stations . | . . . . . Recycling Units . | . . . . . Scanalyzers 3 | . . 3 . . Garrison Access . | . . . . . Terminal Hacks . | . . . . . Fabricator Hacks . | . . . . . Repair Station Hacks . | . . . . . Recycling Unit Hacks . | . . . . . Scanalyzer 3 | . . 3 . . Insert Component 1 | . . 1 . . Analyze 2 | . . 2 . . Garrison Access Hacks . | . . . . . Unauthorized Hacks . | . . . . . Terminals . | . . . . . Fabricators . | . . . . . Repair Stations . | . . . . . Recycling Units . | . . . . . Scanalyzers . | . . . . . Garrison Access . | . . . . . Data Cores Recovered 1 | . . 1 . . Used . | . . . . . Hacking Detections 1 | . . 1 . . Full Trace Events 1 | . . 1 . . Feedback Events . | . . . . . Feedback Blocked . | . . . . . Robot Schematics Acquired . | . . . . . Robots Built . | . . . . . Authchips . | . . . . . Time . | . . . . . Total Robot Build Rating . | . . . . . Part Schematics Acquired 1 | . . 1 . . Parts Built . | . . . . . Authchips . | . . . . . Time . | . . . . . Total Part Build Rating . | . . . . . Parts Repaired . | . . . . . Time . | . . . . . Parts Recycled . | . . . . . Recycled Matter . | . . . . . Retrieved Matter . | . . . . . Retrieved Components . | . . . . . Parts Scanalyzed 1 | . . 1 . . Part Schematics Acquired 1 | . . 1 . . Parts Damaged . | . . . . . Bothacking | -11 -10 -9 -8 -7 ------------ Run | Yrd Mat Mat Mat Fac Used RIF Installer . | . . . . . Robots Hacked . | . . . . . Non-combat . | . . . . . Combat . | . . . . . Robot Hacks Applied . | . . . . . Relay Couplers Released . | . . . . . Fabnet Peak Effective % . | . . . . . Robots Rewired . | . . . . . Allies Hacked . | . . . . . Hacks Repelled . | . . . . . Allies | -11 -10 -9 -8 -7 -------- Run | Yrd Mat Mat Mat Fac Total Allies . | . . . . . Largest Group . | . . . . . Highest-Rated Group . | . . . . . Highest-Rated Ally . | . . . . . Total Orders . | . . . . . Ally Attacks . | . . . . . Total Damage . | . . . . . Kills . | . . . . . Allies Corrupted . | . . . . . Allies Melted . | . . . . . Intel | -11 -10 -9 -8 -7 ------- Run | Yrd Mat Mat Mat Fac Robot Analysis Total . | . . . . . Derelict Logs Recovered . | . . . . . Drone Launches . | . . . . . Drone Recoveries . | . . . . . Exploration | -11 -10 -9 -8 -7 ------------- Run | Yrd Mat Mat Mat Fac Turns Passed 1506 | 55 270 348 216 617 Spaces Moved 1353 | 47 327 375 174 430 Core 149 | 18 . . . 131 Treads 179 | . . . . 179 Legs . | . . . . . Wheels 43 | 29 14 . . . Hover 982 | . 313 375 174 120 Flight . | . . . . . Fastest Speed 50 | 50 56 52 52 50 Average Speed 75 | 68 57 58 58 111 Slowest Speed 200 | 80 80 116 116 200 Overloaded Moves . | . . . . . Propulsion Burnouts . | . . . . . Robots Hopped . | . . . . . Cave-ins Triggered . | . . . . . Exploration Rate (%) 25 | 7 50 30 21 17 Regions Visited 4 Branch Regions . Pre-discovered Areas . | . . . . . Known Exits Taken 2 | . . 1 1 . Unknown Exits Taken 2 | 1 1 . . . Scrap Searched . | . . . . . Spaces Dug . | . . . . . Terrain Destroyed 72 | . . 57 8 7 Melee . | . . . . . Projectile 1 | . . . . 1 AOE 71 | . . 57 8 6 Terrain Rammed . | . . . . . Walls Destroyed . | . . . . . Machines Disabled . | . . . . . Actions | -11 -10 -9 -8 -7 --------- Run | Yrd Mat Mat Mat Fac Total 1656 | 63 376 466 226 525 Wait 115 | 4 . 44 19 48 Move 1349 | 46 326 374 173 430 Hop . | . . . . . Pick Up 34 | 5 8 8 2 11 Fast Attach 3 | . 2 . 1 . Attach 34 | 5 7 7 3 12 Detach 6 | . 4 1 . 1 Swap 7 | . 2 4 1 . Drop 9 | . 3 6 . . Fire 94 | 3 24 22 27 18 Melee 5 | . . . . 5 Ram . | . . . . . Kick . | . . . . . Crush . | . . . . . Escape Stasis . | . . . . . Rewire . | . . . . . Trap . | . . . . . Miscellaneous . | . . . . . Route ------- -11/Scrapyard -10/Materials (discovered 2 exits: *Mat x2) -9/Materials -8/Materials -7/Factory (discovered 1 exit: [*Fac]) History --------- Turn | Location | Event 2 | -11/Scrapyard | Met Revision 17 37 | -11/Scrapyard | Discovered new exit (range 8) 56 | -11/Scrapyard | Entered Materials 281 | -10/Materials | Discovered new exit (range 6) 309 | -10/Materials | Discovered new exit (range 15) 310 | -10/Materials | Build established: Mutant 326 | -10/Materials | Entered another Materials area 326 | -9/Materials | Evolved 2 slots: Propulsion x1, Utility x1 402 | -9/Materials | Destroyed 10 combat bots 408 | -9/Materials | Lost 3 parts (1p1n1w) 514 | -9/Materials | Discovered new exit (range 10) 674 | -9/Materials | Identified exit to Materials 674 | -9/Materials | Entered another Materials area 674 | -8/Materials | Evolved 2 slots: Weapon x2 825 | -8/Materials | Lost 3 parts (1n1u1w) 884 | -8/Materials | Discovered new exit (range 7) 889 | -8/Materials | Identified exit to Factory 890 | -8/Materials | Entered Factory 890 | -7/Factory | Evolved 2 slots: Power x1, Weapon x1 1021 | -7/Factory | Lost 8 parts (2p3n1u2w) 1114 | -7/Factory | Core integrity fell below 50% 1144 | -7/Factory | Lost 5 parts (1u4w) 1333 | -7/Factory | Core integrity fell below 20% 1441 | -7/Factory | Discovered new exit (range 16) 1507 | -7/Factory | Destroyed by P-60 Hacker with Shock Rifle Last Messages --------------- H-55 Commando retrieves Drone. Penetrated by Slug. Particle Gun destroyed. Penetrated by Slug. ALERT: Rogue bot located, Programmers report to Factory Zone 3H. Slug penetrates Wall. System corrupted: Component data lost. Penetrated by Slug. Destroyed Lgt. Nuclear Core. H-55 Commando system corrupted by crushing effect. H-55 Commando misfires. Slug penetrates Wall. H-55 Commando system terminally corrupted. Targeting Computer fried. Acquired 57 matter. Acquired Corrupted Carbon-fiber Leg. EXIT=FOUND Acquired Deuterium Engine. Map ----- +----------------------------------------------------+ | ?????????????????????????????????????????????????? | | ?????????????????????????????????????????????????? | | ?????????????????????????????????????????????????? | | ?????????????????????????????????????????????????? | | ?????????????????????????????????????????????????? | | ?????????????????????????????????????????????????? | | ?????????????????????????????????????????????????? | | ?????????????????????????????????????????????????? | | ?????????????????????????????????????????????????? | | ?????????????????????????????????????????????????? | | ?????????????????????????????????????????????????? | | ?????????##########??????????????????????????????? | | ?????????# #??????????????????????????????? | | ?????????# !#??????????????????????????????? | | ?????????# #??????????????????????????????? | | ?????????# #??????????????????????????????? | | ?????????# #??????????????????????????????? | | ?????????# ##############?????????????????? | | ?????????# # #?????????????????? | | ?????????# # #?????????????????? | | ?????????# # ^ #?????????????????? | | ?????????######+### #?????????????????? | | ??????????????# #?# ^ #?????????????????? | | ??????????????#[#?# ^ #?????????????????? | | ??????????????# #?# #?????????????????? | | ??????????????# #?# @ #?????????????????? | | ??????????????# #?# #?????????????????? | | ??????????????# #?# #?????????????????? | | ??????????????# #?# =#?????????????????? | | ??????????????# #?# p #?????????????????? | | ?????????"????# #########/########???????????????? | | ???????? """??# ^ #????????????? | | ???????? """" # #????????????? | | ???????? """" + < #????????????? | | ???????? """" # #????????????? | | ??????? ??# #????????????? | | ??????#= ????# ############/####????????????? | | ??????# ??????# #???????????? ??????????????? | | ??????????????# #?????????????""?????????????? | | ??????????????# #???" ?????????"?????????????? | | ??????????????# #??"" ??#????????????????????? | | ??????????????# #?? #????????????????????? | | ??? ??????????# #?""" #????????????????????? | | ?? ?????????# #?""" #????????????????????? | | ?? ######### # """ #????????????????????? | | ? # #????????????????????? | | ? + """ #????????????????????? | | # # """ ! #????????????????????? | | # # """ #????????????????????? | | # #? = #????????????????????? | +----------------------------------------------------+ Best States ------------- Heat Dissipation 61 Energy Generation 23 Energy Capacity 380 Matter Stores 400 Matter Capacity 400 Sight Range 16 Robot Scan Range 14 Terrain Scan Density 10 Additional Mass Support 9 Armor Coverage 225 Evasion (%) 54 Recoil Reduction 1 Item Schematics ----------------- Imp. Hover Unit | -9/Materials | Scanalyzed Robot Schematics ------------------ None Fabricated ------------ Nothing Alien Tech Used ----------------- None Achievements -------------- Crack Shot Made in Tau Ceti IV Oops Please Form A Line Uninvited Guest Challenges ------------ None Game ------ Seed ShadeSalvageInsulator Manual? 0 Play Time 00:35:11 Cumulative 1.5 hours Start 2024.04.13 @ 22:08:53 End 2024.04.13 @ 22:42:48 Sessions 1 Manual Loads 0 Difficulty Rogue Special Mode None Game No. 2 Rogue 2 Adventurer 0 Explorer 0 Win Type - Total 0 Types 0/0/0/0/0/0/0/0/0 Lore% 0 Gallery% 3 Achievement% 4 Wizard Run 0 Options --------- Layout 1 ASCII 0 Keyboard 0 Movement Mouse Keybinds 0 Fullscreen 1 Font 16/SmallcapsGlow Map View 50x54 Zoom Use 0% Tactical HUD 0 Map Filters NONE Filters NONE Steam 1 RUN: 5a20a955-474f-4214-a002-2851d734fabb